Workbook

Sheet Sachbezüge
A6: Sachbezugswerte für Jugendliche und Auszubildende im Kalenderjahr 2025
A7: in Bayern
A9: + für freie Verpflegung
B11: Frühstück | C11: Mittagessen | D11: Abendessen | E11: Verpflegung insgesamt
A12: monatlich | B12: 69 | C12: 132 | D12: 132 | E12: =SUM(B12:D12) -> 333
A13: kalendertäglich | B13: 2.3 | C13: 4.4 | D13: 4.4 | E13: =SUM(B13:D13) -> 11.1
A15: + für freie Unterkunft
A17: Unterkunft belegt mit | B17: Unterkunft allgemein | D17: Aufnahme im Arbeitgeberhaushalt/
B18: EUR | D18: Gemeinschaftsunterkunft EUR
A19: 1 Azubi monatlich | B19: 239.7 | D19: 197.4
A20: kalendertäglich | B20: =ROUND(B19/30,2) -> 7.99 | D20: =ROUND(D19/30,2) -> 6.58
A21: 2 Azubis monatlich | B21: 126.9 | D21: 84.6 | G21: =+B21/B19 -> 0.5294117647 | H21: =+D21/D19 -> 0.4285714286
A22: kalendertäglich | B22: =ROUND(B21/30,2) -> 4.23 | D22: =ROUND(D21/30,2) -> 2.82
A23: 3 Azubis monatlich | B23: 98.7 | D23: 56.4 | G23: =+B23/B19 -> 0.4117647059 | H23: =+D23/D19 -> 0.2857142857
A24: kalendertäglich | B24: =ROUND(B23/30,2) -> 3.29 | D24: =ROUND(D23/30,2) -> 1.88
A25: mehr als 3 Azubis mtl. | B25: 70.5 | D25: 28.2 | G25: =+B25/B19 -> 0.2941176471 | H25: =+D25/D19 -> 0.1428571429
A26: kalendertäglich | B26: =ROUND(B25/30,2) -> 2.35 | D26: =ROUND(D25/30,2) -> 0.94
A28: Erläuterungen:
A29: Für die Ermittlung des anzusetzenden Sachbezugswertes für einen Teil-Entgeltabrechnungszeitraum sind die jeweiligen Tagesbeträge mit der Anzahl der Kalendertage zu multiplizieren. Wäre es nach Lage des Einzelfalles unbillig, den Wert der Unterkunft nach den vorstehenden Tabellenwerten zu bestimmen, kann die Unterkunft nach § 2 Abs. 3 S. 3 Sozialversicherungsentgelt-verordnung mit dem ortsüblichen Mietpreis bewertet werden. Eine Aufnahme in den Arbeitgeberhaushalt liegt vor, wenn der Auszubildende sowohl in die Wohnungs- als auch in die Verpflegungsgemeinschaft des Arbeitgebers aufgenommen wird. Bei ausschließlicher Zurverfügungstellung von Unterkunft liegt dagegen keine "Aufnahme" in den Arbeitgeberhaushalt vor, so dass der ungekürzte Unterkunftswert anzusetzen ist. Für freie Wohnung ist kein amtlicher Sachbezugswert festgesetzt. Vielmehr ist für freie Wohnung grundsätzlich der ortsübliche Mietpreis anzusetzen. Eine Wohnung ist im Gegensatz zur Unterkunft eine in sich geschlossene Einheit von Räumen, in denen ein selbstständiger Haushalt geführt werden kann. Wesentlich ist, dass eine Wasserversorgung und -entsorgung, zumindest eine einer Küche vergleichbare Kochgelegenheit sowie eine Toilette vorhanden sind. Danach stellt z.B. ein Einzimmerappartement mit Küchenzeile und WC als Nebenraum eine Wohnung dar, während bei Mitbenutzung von Bad, Toilette und Küche lediglich eine Unterkunft vorliegt. Wird mehreren Arbeitnehmern eine Wohnung zur gemeinsamen Nutzung (Wohngemeinschaft) zur Verfügung gestellt, liegt insoweit nicht freie Wohnung, sondern lediglich freie Unterkunft vor. Ist die Feststellung des ortsüblichen Mietpreises mit außerordentlichen Schwierigkeiten verbunden, kann die Wohnung mit 4,95 EUR mtl. je Quadratmeter bzw. bei einfacher Ausstattung (ohne Sammelheizung oder ohne Bad oder Dusche) mit 4,05 EUR mtl. je Quadratmeter bewertet werden. Bei Gewährung von unentgeltlichen oder verbilligten Mahlzeiten im Betrieb (§ 40 Abs. 2 Satz 1 Nr. 1 EStG) sind sowohl für volljährige Arbeitnehmer als auch für Jugendliche und Auszubildende nachstehende Beträge anzusetzen: Frühstück: 2,30 EUR / Mittagessen: 4,40 EUR / Abendessen: 4,40 EUR.

Sheet Lohn
B2: Vergütungsberechnung für Auszubildende ab 1. Januar 2025
B3: nach dem Tarifvertrag über Ausbildungsvergütungen in der Land- und Forstwirtschaft in Bayern
B4: Tarif siehe: | C4: http://www.stmelf.bayern.de/berufsbildung/berufe//004067/
C7: Brutto- vergütung nach Tarif | D7: Kranken- versicherung AN-Anteil | E7: Renten- versicherung AN-Anteil | F7: Arbeitslosen- versicherung AN-Anteil | G7: Pflege- versicherung AN-Anteil | H7: Summe der Abzüge AN-Anteil Sozialvers. | I7: Zwischen- summe | J7: Sachbezüge nach Angabe | K7: Altersver- sorgung | L7: Netto- vergütung ggf. ./. Lohnsteuer
B8: in den ersten 6 Monaten | C8: 900 | D8: =ROUND($D$28*C8,2)+ROUND($F$28*C8,2) -> 76.95 | E8: =ROUND($D$29*C8,2) -> 83.7 | F8: =ROUND($D$30*C8,2) -> 11.7 | G8: =IF($J$30="ja",ROUND(($D$31+$F$31)*C8,2),ROUND($D$31*C8,2)) -> 16.2 | H8: =SUM(D8:G8) -> 188.55 | I8: =C8-H8 -> 711.45 | J8: =IF((H21*Sachbezüge!B13+H23*Sachbezüge!C13+H25*Sachbezüge!D13+IF(K23="ja",Sachbezüge!D19,"0"))/C8>0.75,C8*0.75,IF(AND(H21=30,H23=30,H25=30,K23="ja"),D23,H21*Sachbezüge!B13+H23*Sachbezüge!C13+H25*Sachbezüge!D13+IF(K23="ja",Sachbezüge!D19,"0"))) -> 352.8 | K8: =IF($J$28="ja",10,"-") -> 10 | L8: =IF($J$28="ja",I8-J8-K8,I8-J8) -> 348.65
B9: ab dem 7. Monat | C9: 1000 | D9: 85.5 | E9: 93 | F9: 13 | G9: 18 | H9: 209.5 | I9: 790.5 | J9: =IF((H21*Sachbezüge!B13+H23*Sachbezüge!C13+H25*Sachbezüge!D13+IF(K23="ja",Sachbezüge!D19,"0"))/C9>0.75,C9*0.75,IF(AND(H21=30,H23=30,H25=30,K23="ja"),D23,H21*Sachbezüge!B13+H23*Sachbezüge!C13+H25*Sachbezüge!D13+IF(K23="ja",Sachbezüge!D19,"0"))) -> 352.8 | K9: 10 | L9: 427.7
B10: ab dem 13. Monat, unter 18 Jahren | C10: 700 | D10: 59.85 | E10: 65.1 | F10: 9.1 | G10: 12.6 | H10: 146.65 | I10: 553.35 | J10: =IF((H21*Sachbezüge!B13+H23*Sachbezüge!C13+H25*Sachbezüge!D13+IF(K23="ja",Sachbezüge!D19,"0"))/C10>0.75,C10*0.75,IF(AND(H21=30,H23=30,H25=30,K23="ja"),D23,H21*Sachbezüge!B13+H23*Sachbezüge!C13+H25*Sachbezüge!D13+IF(K23="ja",Sachbezüge!D19,"0"))) -> 352.8 | K10: 10 | L10: 190.55
B11: in den ersten 6 Mona- ten, über 18 Jahren | C11: 630 | D11: 53.87 | E11: 58.59 | F11: 8.19 | G11: 11.34 | H11: 131.99 | I11: 498.01 | J11: =IF((H21*Sachbezüge!B13+H23*Sachbezüge!C13+H25*Sachbezüge!D13+IF(K23="ja",Sachbezüge!D19,"0"))/C11>0.75,C11*0.75,IF(AND(H21=30,H23=30,H25=30,K23="ja"),D23,H21*Sachbezüge!B13+H23*Sachbezüge!C13+H25*Sachbezüge!D13+IF(K23="ja",Sachbezüge!D19,"0"))) -> 352.8 | K11: 10 | L11: 135.21
B12: ab dem 7. Monat, über 18 Jahren | C12: 690 | D12: 59 | E12: 64.17 | F12: 8.97 | G12: 12.42 | H12: 144.56 | I12: 545.44 | J12: =IF((H21*Sachbezüge!B13+H23*Sachbezüge!C13+H25*Sachbezüge!D13+IF(K23="ja",Sachbezüge!D19,"0"))/C12>0.75,C12*0.75,IF(AND(H21=30,H23=30,H25=30,K23="ja"),D23,H21*Sachbezüge!B13+H23*Sachbezüge!C13+H25*Sachbezüge!D13+IF(K23="ja",Sachbezüge!D19,"0"))) -> 352.8 | K12: 10 | L12: 182.64
B13: ab dem 13. Monat | C13: 1100 | D13: 94.05 | E13: 102.3 | F13: 14.3 | G13: 19.8 | H13: 230.45 | I13: 869.55 | J13: =IF((H21*Sachbezüge!B13+H23*Sachbezüge!C13+H25*Sachbezüge!D13+IF(K23="ja",Sachbezüge!D19,"0"))/C13>0.75,C13*0.75,IF(AND(H21=30,H23=30,H25=30,K23="ja"),D23,H21*Sachbezüge!B13+H23*Sachbezüge!C13+H25*Sachbezüge!D13+IF(K23="ja",Sachbezüge!D19,"0"))) -> 352.8 | K13: 10 | L13: 506.75
C16: Die Sachbezüge dürfen maximal 75% der Bruttovergütung betragen.
C17: Berechtigterweise nicht in Anspruch genommene Sachbezüge (Urlaub, Berufsschultage, Lehrgänge, u.ä.)
C18: müssen dem Auszubildenden ausbezahlt bzw. erstattet werden.
C20: Angaben zu den Sachbezügen | H20: Anzahl erhaltene
G21: Frühstück: | H21: 14
D23: =Sachbezüge!E12+Sachbezüge!D19 -> 530.4 | E23: (30 Tage) | F23: oder | G23: Mittagessen: | H23: 14 | I23: und | J23: Unterkunft: | K23: ja
G25: Abendessen: | H25: 14 | J25: (ja=voller Monat od. nein)
C27: Sozialversicherungsbeitrag (Arbeitnehmeranteil 50%) | H27: Zusätzliche
C28: KrankenVS | D28: 0.073 | E28: + | F28: 0.0125 | H28: Altersversorgung: | J28: ja | K28: (ja od. nein)
C29: RentenVS | D29: 0.093 | F29: (Zusatzbeitrag)
C30: Arbl.VS | D30: 0.013 | H30: Auszubildende/r: | J30: nein | K30: (ja od. nein)
C31: PflegeVS | D31: 0.018 | E31: =IF(J30="ja","+","") ->  | F31: =IF(J30="ja",0.6%,"") ->  | H31: (kinderlose, die das 23. Lebensjahr vollendet haben)
B33: ã R. Gassner, AELF Ebersberg-Erding
